bitfinex/quotes_ETHUSD_20220309
["timestamp","ask_amount","ask_price","bid_price","bid_amount"]
[1646844182993,3.5,2753.6,2753.4,1.81708]
[1646844183186,3.945,2753.6,2753.1,0.07193135]
[1646844183385,3.945,2753.6,2752.7,0.193067]
[1646844183386,4.9871412,2753.6,2753.4,0.00404818]
[1646844183626,5.0,2753.4,2752.7,0.93620149]
[1646844183824,4.40886,2753.3,2752.7,0.93620149]
[1646844184023,0.89442127,2753.2,2752.7,0.93620149]
[1646844184226,0.89442127,2753.2,2752.7,0.26245748]
[1646844184428,3.945,2753.1,2752.7,0.1814]
[1646844184829,3.945,2753.1,2752.6,3.32460735]
[1646844184830,5.945,2753.1,2752.6,3.32460735]
[1646844185225,8.945,2753.1,2752.6,3.32460735]
[1646844185429,0.94015591,2752.7,2752.6,3.32460735]
[1646844185635,1.445,2752.7,2752.6,1.50705735]
[1646844185828,1.745,2752.7,2752.6,1.50705735]
[1646844187027,0.445,2752.7,2752.6,1.50705735]
[1646844187482,0.745,2752.7,2752.6,1.50705735]
[1646844187880,1.90902,2752.8,2752.6,1.50705735]
[1646844188081,1.90902,2752.8,2752.7,0.94983207]
[1646844188285,1.90902,2752.8,2752.7,0.96162607]
[1646844188286,0.90902,2752.8,2752.7,0.96162607]
[1646844188498,0.90861,2753.1,2752.8,0.07862224]
[1646844188679,0.90861,2753.1,2752.9,0.011782]
[1646844190685,0.90861,2753.1,2752.9,0.01603989]
[1646844191538,0.90861,2753.1,2752.9,0.011782]
[1646844191738,0.90861,2753.1,2752.9,0.01589619]
[1646844191941,0.90861,2753.1,2752.9,0.00411419]
[1646844192543,0.90861,2753.1,2752.8,0.07862224]
[1646844192743,0.90861,2753.1,2752.9,0.00277424]
[1646844193747,0.90861,2753.1,2752.8,0.07862224]
[1646844194246,0.90861,2753.1,2752.9,0.00277424]
[1646844194447,5.0,2753.0,2752.6,1.89357403]
[1646844194651,2.1174374,2753.1,2752.6,1.75578944]
[1646844194652,1.81779,2752.9,2752.6,1.75578944]
[1646844194880,1.81779,2752.9,2752.6,1.50705735]
[1646844195082,2.11779,2752.9,2752.6,1.50705735]
[1646844195682,6.0,2752.8,2752.6,1.50705735]
[1646844195885,6.0,2752.8,2752.6,1.31150779]
[1646844195886,1.0,2752.7,2752.6,1.31150779]
[1646844196089,1.90889,2752.7,2752.6,1.31150779]
[1646844196284,2.20889,2752.7,2752.6,1.31150779]
[1646844196486,5.70889,2752.7,2752.6,1.31150779]
[1646844196689,6.70889,2752.7,2752.6,1.31150779]
[1646844196889,5.70889,2752.7,2752.6,1.31150779]
[1646844197690,2.20889,2752.7,2752.6,1.31150779]
[1646844197989,0.59816173,2752.7,2752.6,1.31150779]
[1646844198190,1.81779,2752.9,2752.6,1.39336074]
[1646844198536,1.81779,2752.9,2752.7,0.08848281]
[1646844198741,2.7266923,2752.9,2752.7,0.011754]
[1646844198940,2.7266923,2752.9,2752.6,1.31150779]
[1646844199839,4.40886,2752.8,2752.6,1.31150779]
[1646844200039,4.5,2752.7,2752.6,1.31150779]
[1646844200236,5.5,2752.7,2752.6,1.31576223]
[1646844200639,6.63997425,2752.7,2752.6,1.31576223]
[1646844200839,6.0,2752.6,2752.5,0.3]
[1646844201137,6.0,2752.6,2752.1,0.011667]
[1646844201138,10.945,2752.6,2752.1,0.011667]
[1646844201343,10.945,2752.6,2752.5,0.00425455]
[1646844201344,15.5811824,2752.6,2752.5,0.00425455]
[1646844201537,15.5811824,2752.6,2752.1,0.02868775]
[1646844201538,1.0,2752.3,2752.1,0.02868775]
[1646844201739,3.5,2752.4,2752.1,0.01702075]
[1646844201938,0.90906,2752.2,2752.1,0.01702075]
[1646844202389,5.40906,2752.2,2751.6,0.75674276]
[1646844202591,5.85406,2752.2,2751.6,0.75674276]
[1646844202889,6.85406,2752.2,2751.6,0.75674276]
[1646844203088,6.85406,2752.2,2751.6,0.08299875]
[1646844203288,9.85406,2752.2,2751.6,0.08299875]
[1646844203590,10.93930952,2752.2,2751.6,0.08299875]
[1646844203788,9.85406,2752.2,2751.8,0.00277131]
[1646844204191,5.35406,2752.2,2751.8,0.00277131]
[1646844204394,0.90906,2752.2,2751.9,0.09827258]
[1646844204592,0.90906,2752.2,2752.0,0.011815]
[1646844205192,0.90906,2752.2,2752.0,1.23059766]
[1646844205892,0.90906,2752.2,2752.0,0.011815]
[1646844206135,0.90906,2752.2,2752.0,0.0041147]
[1646844206936,0.90906,2752.2,2751.9,0.08650958]
[1646844207341,0.90906,2752.2,2752.0,0.00411626]
[1646844207540,0.90906,2752.2,2752.0,1.08330307]
[1646844208140,0.90906,2752.2,2752.0,1.07918681]
[1646844209885,1.0,2752.6,2752.1,0.0767002]
[1646844210283,2.5393,2752.8,2752.1,0.0767002]
[1646844210483,4.8,2752.8,2752.1,0.0767002]
[1646844210682,5.1646,2752.8,2752.1,0.0767002]
[1646844210885,1.273653,2752.7,2752.1,0.0767002]
[1646844211083,3.8646,2752.6,2751.9,0.00425541]
[1646844211286,1.0,2752.2,2751.9,0.00425541]
[1646844211686,1.3,2752.2,2751.7,0.07067991]
[1646844211887,1.3,2752.2,2751.8,0.07147148]
[1646844212083,1.3,2752.2,2751.9,0.00425526]
[1646844212488,0.90906,2752.1,2751.9,0.00425526]
[1646844212888,0.90906,2752.1,2751.8,1.28051148]
[1646844213289,0.90906,2752.1,2751.9,0.00425523]
[1646844213533,2.81819,2752.6,2752.0,0.0832286]
[1646844213734,1.0,2752.8,2752.0,0.9920286]
[1646844214033,1.0,2752.8,2752.2,0.07809102]
[1646844214034,1.0,2752.6,2752.2,0.07809102]
[1646844214241,0.3,2752.8,2752.2,0.07809102]
[1646844214535,3.8,2752.8,2752.2,0.07809102]
[1646844214734,0.90881,2752.7,2752.2,0.07809102]
[1646844215133,1.20881,2752.7,2752.2,0.07809102]
[1646844215735,1.20881,2752.7,2752.3,1.51005896]
[1646844216136,1.20881,2752.7,2752.4,0.06997831]
[1646844216336,1.20881,2752.7,2752.5,1.51005896]
[1646844217295,0.3,2752.7,2752.6,0.08649818]
[1646844217489,1.0,2752.8,2752.6,1.59655714]
[1646844217690,0.60403442,2753.0,2752.7,1.51005896]
[1646844217889,0.6,2753.0,2752.7,1.51005896]
[1646844218089,0.3,2753.0,2752.7,1.51005896]
[1646844218289,0.0039065,2753.0,2752.7,1.51005896]
[1646844218889,0.3039065,2753.0,2752.7,1.51005896]
[1646844219191,0.30381512,2753.0,2752.7,1.51005896]
[1646844219393,0.90878,2752.9,2752.7,1.51005896]
[1646844219690,3.5,2752.8,2752.7,1.51005896]
[1646844219891,3.5,2752.8,2751.9,7.10786073]
[1646844219892,4.945,2752.8,2751.9,0.67756073]
[1646844220090,0.90907,2752.6,2752.0,1.59096922]
[1646844220290,3.5,2752.5,2752.1,1.51031203]
[1646844220490,3.945,2752.5,2752.1,1.51031203]
[1646844220694,6.90146576,2752.5,2752.1,1.51031203]
[1646844220891,6.90146576,2752.5,2752.2,1.51031203]
[1646844220892,1.0,2752.4,2752.2,1.51031203]
[1646844221135,1.0,2752.4,2751.9,0.00381668]
[1646844221136,9.945,2752.3,2751.9,0.00381668]
[1646844221336,3.3646,2752.2,2751.6,0.67374401]
[1646844221537,3.945,2752.1,2751.6,0.67374401]
[1646844221736,5.76354,2752.1,2751.6,0.67374401]
[1646844222042,1.8185,2752.0,2751.7,1.51045816]
[1646844222237,1.8185,2752.0,2751.8,1.51045816]
[1646844222440,1.8185,2752.0,2751.6,0.97374401]
[1646844222441,3.5,2751.9,2751.6,0.97374401]
[1646844222640,1.8185,2752.0,2751.7,1.51056711]
[1646844222841,2.72774,2752.0,2751.8,1.51056711]
[1646844223040,2.72774,2752.0,2751.7,0.00389195]
[1646844223041,0.90924,2751.9,2751.7,0.00389195]
[1646844223444,0.90924,2751.9,2751.7,2.18812556]
[1646844223740,0.90924,2751.9,2751.8,1.58272152]
[1646844223940,0.90924,2751.9,2751.8,2.25646553]
[1646844224341,0.90924,2751.9,2751.8,3.41361963]
[1646844224889,0.90924,2751.9,2751.8,2.73987562]
[1646844225786,0.90924,2751.9,2751.8,1.58272152]
[1646844225990,0.90924,2751.9,2751.8,1.5104896]
[1646844226187,1.20924,2751.9,2751.6,2.187062]
[1646844226388,1.20924,2751.9,2751.7,1.5104896]
[1646844226593,1.20924,2751.9,2751.8,1.5104896]
[1646844226789,1.20924,2751.9,2751.7,0.00379106]
[1646844227393,0.90896,2752.2,2751.7,0.75725909]
[1646844227591,0.90896,2752.2,2751.8,1.5104896]
[1646844227793,0.90896,2752.2,2751.8,2.187062]
[1646844228393,0.90896,2752.2,2751.9,0.06993446]
[1646844228837,0.90896,2752.2,2752.0,1.5104896]
[1646844233588,1.8181235,2752.2,2752.0,1.5104896]
[1646844233789,2.1181235,2752.2,2752.0,1.5104896]
[1646844233990,2.1181235,2752.2,2752.1,1.5104896]
[1646844234590,2.1181235,2752.2,2751.8,1.5104896]
[1646844234994,5.6181235,2752.2,2751.9,0.00379982]
[1646844235291,6.6181235,2752.2,2751.9,0.00379982]
[1646844235489,3.1181235,2752.2,2751.9,0.00379982]
[1646844235890,6.6181235,2752.2,2751.7,2.187062]
[1646844236135,1.81824,2752.0,2751.9,0.00379995]
[1646844236534,1.81824,2752.0,2751.9,1.51428955]
[1646844236935,1.81824,2752.0,2751.9,0.00379995]
[1646844237136,0.9091,2752.1,2751.9,1.00674865]
[1646844237338,0.9091,2752.1,2752.0,1.58278272]
[1646844238739,0.9091,2752.1,2752.0,2.25935512]
[1646844238938,0.9091,2752.1,2752.0,1.58278272]
[1646844239640,1.8181955,2752.2,2752.0,1.58278272]
[1646844239641,1.11603168,2752.2,2752.0,1.58278272]
[1646844239892,1.11603168,2752.2,2752.1,1.5104896]
[1646844240096,4.91603168,2752.2,2752.1,1.5104896]
[1646844240288,8.64362168,2752.2,2751.8,0.6765724]
[1646844240490,9.64362168,2752.2,2751.8,2.187062]
[1646844240989,9.64362168,2752.2,2751.9,1.51473805]
[1646844241191,9.64362168,2752.2,2752.0,1.5104896]
[1646844241389,0.90916,2752.1,2752.0,1.5104896]
[1646844241789,1.20916,2752.1,2752.0,1.5104896]
[1646844242190,4.70916,2752.1,2752.0,1.5104896]
[1646844242397,1.20916,2752.1,2752.0,1.5104896]
[1646844242601,2.20916,2752.1,2752.0,1.5104896]
[1646844242796,1.20916,2752.1,2752.0,1.5104896]
[1646844243396,0.90916,2752.1,2751.9,0.0042484]
[1646844243639,0.90916,2752.1,2752.0,1.5104896]
[1646844243838,0.90916,2752.1,2751.9,0.6808208]
[1646844244239,0.90916,2752.1,2751.9,0.6765724]
[1646844244440,1.81833,2752.1,2751.9,0.6765724]
[1646844244641,8.31833,2752.1,2752.0,1.5104896]
[1646844244840,6.11833,2752.1,2751.9,1.51473798]
[1646844245040,6.11833,2752.1,2752.0,1.5104896]
[1646844245243,6.56333,2752.1,2752.0,1.5104896]
[1646844245440,5.65416,2752.1,2751.7,0.6765724]
[1646844245642,10.15416,2752.1,2751.9,0.00410502]
[1646844245841,10.15416,2752.1,2752.0,1.5104896]
[1646844246042,5.65416,2752.1,2752.0,1.5104896]
[1646844246243,5.65416,2752.1,2751.9,0.00410502]
[1646844246440,5.65416,2752.1,2752.0,1.5104896]
[1646844246643,9.15416,2752.1,2751.6,2.187062]
[1646844246842,5.65416,2752.1,2751.6,2.187062]
[1646844247490,2.84790231,2752.0,2751.6,2.187062]
[1646844247692,4.14790231,2752.0,2751.6,2.187062]
[1646844248491,7.64790231,2752.0,2751.6,2.187062]
[1646844248690,5.05710111,2752.0,2751.6,1.5104896]
[1646844248890,5.50210111,2752.0,2751.7,1.5104896]
[1646844249194,5.50210111,2752.0,2751.4,0.6765724]
[1646844249195,6.3,2751.8,2751.4,0.6765724]
[1646844249393,6.3,2751.8,2751.3,0.6765724]
[1646844249394,5.81416612,2751.7,2751.3,0.6765724]
[1646844249593,4.5,2751.2,2750.8,0.90341713]
[1646844249895,4.5,2751.2,2750.7,0.0749594]
[1646844249896,3.04595,2751.2,2751.0,0.6775279]
[1646844250190,3.04595,2751.2,2750.7,0.0749594]
[1646844250191,4.34595,2751.2,2750.7,0.0749594]
[1646844250391,3.34595,2751.2,2750.7,0.0749594]
[1646844250595,0.90963,2751.1,2750.7,0.97837653]
[1646844250790,0.90963,2751.1,2750.8,0.97792178]
[1646844251036,0.90963,2751.1,2750.9,0.06882998]
[1646844251236,0.90963,2751.1,2750.9,0.90341713]
[1646844251436,0.90963,2751.1,2751.0,0.07430516]
[1646844252036,0.90963,2751.1,2750.8,0.07668315]
[1646844252940,1.44726245,2751.1,2750.8,0.07668315]
[1646844253144,1.44726245,2751.1,2750.8,0.98010028]
[1646844253341,1.44726245,2751.1,2750.8,0.07668315]
[1646844253942,1.44726245,2751.1,2750.7,0.90341713]
[1646844254144,1.74726245,2751.1,2750.7,0.90341713]
[1646844254343,1.74726245,2751.1,2750.8,0.00400442]
[1646844254985,1.44726245,2751.1,2750.8,0.07333044]
[1646844255185,1.44726245,2751.1,2750.8,0.97274315]
[1646844255692,0.90963,2751.1,2750.9,0.07796086]
[1646844255884,0.011667,2751.3,2750.9,0.07796086]
[1646844256186,0.1816,2751.4,2751.1,0.07847059]
[1646844256187,0.90922,2751.4,2751.1,0.07847059]
[1646844257788,0.90922,2751.4,2751.1,0.08269157]
[1646844258641,1.220964,2751.4,2751.1,0.08269157]
[1646844258840,1.81884,2751.3,2750.8,0.08258845]
[1646844259040,1.81884,2751.3,2751.1,0.00407853]
[1646844259641,0.20697537,2751.3,2751.1,0.00407853]
[1646844259840,0.20697537,2751.3,2751.0,0.75962993]
[1646844260043,0.20697537,2751.3,2751.1,0.08270012]
[1646844260241,0.20697537,2751.3,2751.1,0.08677863]
[1646844261045,0.20697537,2751.3,2751.1,0.08270012]
[1646844261444,0.20697537,2751.3,2751.1,0.08677863]
[1646844262287,0.20697537,2751.3,2751.1,0.75912784]
[1646844262494,0.20697537,2751.3,2751.2,0.06971895]
[1646844263500,0.9094,2751.4,2751.2,0.67642772]
[1646844263794,0.9094,2751.4,2751.3,0.75276974]
[1646844264495,2.83428744,2751.7,2751.3,1.71610022]
[1646844264496,1.01586744,2751.7,2751.3,1.71610022]
[1646844264694,0.311908,2751.7,2751.4,0.67645286]
[1646844264894,0.00395949,2751.7,2751.5,0.08147665]
[1646844265096,0.00395949,2751.7,2751.5,0.75792951]
[1646844265297,0.00395949,2751.7,2751.6,0.0814978]
[1646844265596,0.00395949,2751.7,2751.6,0.75795066]
[1646844265798,0.193267,2752.1,2751.6,0.75795066]
[1646844266041,0.193267,2752.1,2751.5,0.3]
[1646844266042,0.011667,2752.1,2751.8,0.08592176]
[1646844266639,0.011667,2752.1,2751.8,0.76237462]
[1646844266838,0.011667,2752.1,2751.9,0.08317798]
[1646844268045,0.90897,2752.1,2751.9,0.08317798]
[1646844268246,3.9022266,2752.7,2751.9,0.75963084]
[1646844268247,0.011667,2752.5,2751.9,0.75963084]
[1646844268444,0.011667,2752.5,2752.1,0.07122816]
[1646844268845,0.011667,2752.5,2752.2,0.08445972]
[1646844269043,0.011667,2752.5,2752.3,1.51061411]
[1646844269246,0.920487,2752.5,2752.3,1.51061411]
[1646844269644,1.220487,2752.5,2752.3,1.51061411]
[1646844269889,1.2247079,2752.5,2752.3,1.51061411]
[1646844270892,1.220487,2752.5,2752.3,1.51061411]
[1646844271096,1.2247079,2752.5,2752.3,1.51061411]
[1646844271995,1.220487,2752.5,2752.3,1.51061411]
[1646844272294,1.2247079,2752.5,2752.3,1.51061411]
[1646844272997,0.0042209,2752.5,2752.4,0.0887224]
[1646844273195,0.011667,2752.7,2752.4,1.59933651]
[1646844273394,0.011667,2752.7,2752.5,1.58538959]
[1646844273634,0.011667,2752.7,2752.6,1.51061411]
[1646844274437,0.011667,2752.7,2752.3,1.51061411]
[1646844274637,1.81793,2752.6,2752.3,1.51061411]
[1646844274837,1.81793,2752.6,2752.4,1.58280756]
[1646844275037,1.81793,2752.6,2752.5,1.57946595]
[1646844275239,2.11793,2752.6,2752.5,1.57946595]
[1646844275837,2.12200835,2752.6,2752.5,1.57946595]
[1646844276037,3.03100835,2752.6,2752.5,1.51061411]
[1646844276237,7.54308935,2752.6,2752.2,0.07604241]
[1646844276440,9.36123935,2752.6,2752.3,1.51061411]
[1646844276643,2.81821,2752.5,2752.4,1.51061411]
[1646844276940,2.81821,2752.5,2751.7,1.2046]
[1646844276941,0.90905,2752.2,2751.8,0.0800255]
[1646844277138,3.5,2752.1,2751.9,1.51083668]
[1646844277391,4.68961408,2752.1,2751.9,1.51083668]
[1646844277592,0.012092,2752.0,2751.4,0.76131265]
[1646844277790,0.012547,2751.8,2751.5,1.59106847]
[1646844277990,0.012547,2751.8,2751.6,1.5919609]
[1646844278192,0.012547,2751.8,2751.7,1.51091698]
[1646844278591,0.30383726,2752.1,2751.7,1.51091698]
[1646844278790,0.30383726,2752.1,2751.8,0.07445189]
[1646844278990,0.30383726,2752.1,2751.9,1.51091698]
[1646844278991,0.00383726,2752.1,2751.9,1.51091698]
[1646844279197,0.85271136,2752.3,2751.9,1.51091698]
[1646844279591,0.445,2752.6,2752.3,0.75501914]
[1646844279790,1.81792,2752.4,2752.3,0.75501914]
[1646844279991,1.81792,2752.4,2752.3,2.26584752]
[1646844281235,2.11792,2752.4,2752.3,2.26584752]
[1646844281437,0.3,2752.4,2752.3,2.26584752]
[1646844281641,1.20893,2752.4,2752.3,2.26584752]
[1646844281842,0.90893,2752.4,2752.3,2.26584752]
[1646844282039,0.00422095,2752.5,2752.3,2.35277801]
[1646844282238,0.00422095,2752.5,2752.4,1.51082838]
[1646844282839,2.11772,2752.8,2752.4,1.51082838]
[1646844283040,0.00422085,2752.6,2752.4,1.51082838]
[1646844284041,0.9088,2752.7,2752.4,1.51082838]
[1646844284343,0.0042208,2752.6,2752.4,1.51082838]
[1646844284795,1.8220408,2752.6,2752.4,1.51082838]
[1646844285188,2.11782,2752.6,2752.4,1.51082838]
[1646844285385,2.1220408,2752.6,2752.4,1.51082838]
[1646844285787,3.5,2752.5,2752.4,1.51082838]
[1646844285988,4.5,2752.5,2752.4,1.51082838]
[1646844286187,5.5,2752.5,2752.4,1.51095244]
[1646844286387,4.0,2752.4,2752.3,0.75501914]
[1646844286587,7.8,2752.4,2752.3,0.75501914]
[1646844286891,5.8,2752.4,2752.3,0.75501914]
[1646844289034,5.5,2752.3,2752.0,0.07750062]
[1646844289239,6.97248,2752.2,2751.5,0.7642593]
[1646844289440,9.2462785,2752.2,2751.5,0.08780644]
[1646844289935,1.0,2752.0,2751.5,0.08780644]
[1646844290140,1.81841,2751.8,2751.5,0.08780644]
[1646844290337,3.5,2751.7,2751.3,0.00387741]
[1646844290536,0.90927,2751.6,2751.3,0.00387741]
[1646844291038,0.3,2751.7,2751.3,0.75051691]
[1646844291235,0.3,2751.8,2751.4,0.0750365]
[1646844291636,1.3,2751.9,2751.4,0.0750365]
[1646844291838,0.3,2751.9,2751.4,0.0750365]
[1646844292042,3.50912,2752.0,2751.4,0.0750365]
[1646844292293,3.50912,2752.0,2751.4,0.75148936]
[1646844292488,0.90906,2751.9,2751.4,0.0750365]
[1646844292689,0.90906,2751.9,2751.4,0.67645286]
[1646844292888,0.90906,2751.9,2751.5,0.0764962]
[1646844293289,5.31838,2751.8,2751.5,0.0764962]
[1646844293490,1.81844,2751.7,2751.5,0.0764962]
[1646844293889,2.72762,2751.7,2751.5,0.0764962]
[1646844294289,0.3,2751.6,2751.3,0.68029774]
[1646844294489,0.3,2751.6,2751.3,0.00384488]
[1646844294892,0.3,2751.6,2751.4,0.07235948]
[1646844295093,0.9092,2751.5,2751.4,0.07235948]
[1646844295294,2.72762,2751.7,2751.4,0.07235948]
[1646844295696,1.81845,2751.6,2751.4,0.07235948]
[1646844296351,3.5,2751.5,2751.3,0.00384482]
[1646844296651,2.11845,2751.6,2751.3,0.00384482]
[1646844296652,2.29965,2751.6,2751.3,0.00384482]
[1646844296848,0.90953,2751.3,2751.0,0.08097534]
[1646844297255,1.20953,2751.3,2751.0,0.0749091]
[1646844297454,1.8191,2751.2,2750.8,0.67645286]
[1646844297754,1.8191,2751.2,2750.7,0.67645286]
[1646844297755,2.1191149,2751.1,2750.7,0.67645286]
[1646844298051,2.1191149,2751.1,2750.8,0.67645286]
[1646844298052,4.8476549,2751.1,2750.8,0.67645286]
[1646844298456,5.8476549,2751.1,2750.8,0.67645286]
[1646844299456,0.90952,2751.0,2750.8,0.67645286]
[1646844299658,5.14523125,2751.1,2750.8,0.67645286]
[1646844299892,5.14523125,2751.1,2750.9,0.67645286]
[1646844300090,3.32611635,2751.1,2750.9,0.67645286]
[1646844300290,0.445,2751.4,2750.9,0.67645286]
[1646844300488,4.75796326,2751.5,2751.0,0.7563464]
[1646844300489,1.90919,2751.5,2751.0,0.7563464]
[1646844300690,1.20919,2751.5,2751.1,0.08071148]
[1646844300888,1.81869,2751.4,2751.1,0.08071148]
[1646844301088,5.61869,2751.4,2750.9,0.67645286]
[1646844301289,5.61869,2751.4,2751.0,0.00422096]
[1646844301488,6.66148237,2751.4,2751.0,0.00422096]
[1646844301694,3.11869,2751.4,2751.0,0.00422096]
[1646844301893,3.11869,2751.4,2751.0,0.68067382]
[1646844301894,1.3,2751.4,2751.0,0.68067382]
[1646844302092,0.3,2751.4,2751.0,0.67645286]
[1646844302292,0.4811,2751.5,2751.1,0.00413672]
[1646844302696,0.2291081,2751.5,2751.1,0.00413672]
[1646844303093,0.2291081,2751.5,2750.8,0.67645286]
[1646844303094,2.26357,2751.4,2750.8,0.67645286]
[1646844303296,4.9172397,2751.3,2750.6,0.67645286]
[1646844303536,4.9172397,2751.3,2750.7,0.69300191]
[1646844303537,2.8192141,2751.0,2750.7,0.69300191]
[1646844303739,4.40961,2750.9,2750.7,0.69300191]
[1646844304137,3.5,2750.8,2750.7,0.69300191]
[1646844304340,3.5,2750.8,2750.6,0.67645286]
[1646844304341,3.945,2750.8,2750.6,0.67645286]
[1646844304542,3.5,2750.7,2750.4,0.67645286]
[1646844304741,7.67414,2750.7,2750.3,0.67645286]
[1646844304939,4.17414,2750.7,2750.4,0.67645286]
[1646844305250,4.4096861,2750.6,2750.3,0.67645286]
[1646844305445,1.35479,2750.5,2750.2,0.69300389]
[1646844305646,1.65479,2750.5,2750.1,0.67645286]
[1646844305843,1.65479,2750.5,2750.0,0.06982344]
[1646844305844,1.0,2750.4,2750.0,0.7462763]
[1646844306044,3.99014546,2750.3,2749.8,0.67645286]
[1646844306247,1.0,2750.2,2749.8,0.67645286]
[1646844306548,0.445,2750.1,2749.8,2.18811479]
[1646844306744,0.445,2750.1,2749.9,1.51166193]
[1646844306944,0.445,2750.1,2750.0,1.51166193]
[1646844307397,1.0,2750.4,2749.9,0.90446799]
[1646844307601,1.219,2750.8,2750.1,0.76661261]
[1646844307800,3.8883,2750.9,2750.2,2.18811479]
[1646844307996,0.445,2751.1,2750.3,0.07263264]
[1646844308196,0.1815,2751.0,2750.4,1.51166193]
[1646844308396,1.81895,2750.9,2750.3,0.37263264]
[1646844308596,0.90946,2750.7,2750.3,0.37263264]
[1646844308796,0.90946,2750.7,2750.3,0.07263264]
[1646844308797,1.81912,2750.7,2750.3,0.07263264]
[1646844308997,1.81912,2750.7,2750.5,1.15113436]
[1646844309199,0.3,2750.6,2750.5,1.15113436]
[1646844309398,1.81912,2750.7,2750.5,1.15113436]
[1646844309799,0.90946,2750.7,2750.5,1.15113436]
[1646844310003,0.1816,2751.1,2750.6,0.06923649]
[1646844310304,5.31542,2751.2,2750.6,0.06923649]
[1646844310305,3.03772,2751.2,2750.6,0.06923649]
[1646844310500,1.219,2751.2,2750.6,0.06923649]
[1646844310698,0.9094414,2751.1,2750.7,0.00420865]
[1646844311338,1.81903,2750.8,2750.7,0.00420865]
[1646844311539,1.81903,2750.8,2750.5,1.15113436]
[1646844311739,3.4737739,2750.8,2750.5,1.15113436]
[1646844311939,1.0,2750.6,2750.5,1.15113436]
[1646844312342,0.3,2750.6,2750.5,1.15113436]
[1646844312742,2.3,2750.7,2750.5,1.15113436]
[1646844312949,1.745,2750.7,2750.5,1.15113436]
[1646844313143,3.5,2750.5,2750.0,0.011667]
[1646844313345,3.5,2750.5,2750.0,0.0276163]
[1646844313346,6.22929,2750.4,2750.0,0.0276163]
[1646844313545,5.17429,2750.4,2750.0,0.0159493]
[1646844313844,0.3,2750.3,2750.0,0.0159493]
[1646844314043,0.3,2750.3,2749.7,0.08220619]
[1646844314245,0.3,2750.3,2749.8,1.00892306]
[1646844314443,1.81948,2750.2,2750.1,0.00385551]
[1646844314645,5.61948,2750.2,2750.1,0.00385551]
[1646844314887,7.06448,2750.2,2750.1,0.00385551]
[1646844315086,8.06448,2750.2,2750.1,0.00385551]
[1646844315492,8.06448,2750.2,2750.0,0.00385556]
[1646844315691,0.90973,2750.1,2750.0,0.00385556]
[1646844316493,0.90973,2750.1,2749.7,0.67645286]
[1646844316693,0.90973,2750.1,2749.9,0.00387737]
[1646844317594,0.90973,2750.1,2749.8,0.08498635]
[1646844317793,1.20973,2750.1,2749.8,0.08498635]
[1646844318005,1.20973,2750.1,2749.9,0.00375384]
[1646844318006,1.8197,2750.0,2749.9,0.00375384]
[1646844318637,2.74766705,2750.1,2749.9,0.00375384]
[1646844318839,1.20973,2750.1,2749.6,0.67645286]
[1646844319038,0.9098156,2750.0,2749.6,0.67645286]
[1646844319238,1.2098156,2750.0,2749.8,0.00375389]
[1646844319438,4.4098156,2750.0,2749.8,0.00375389]
[1646844319643,2.79733834,2750.0,2749.8,0.00375389]
[1646844319942,0.90982,2749.9,2749.8,0.00375389]
[1646844320140,0.90982,2749.9,2749.5,1.55804494]
[1646844320141,4.40982,2749.9,2749.5,0.68811986]
[1646844320344,1.81996,2749.7,2749.2,0.67645286]
[1646844320546,1.81996,2749.7,2749.4,0.01531791]
[1646844320547,3.5,2749.6,2749.4,0.01531791]
[1646844320943,4.5,2749.6,2749.4,0.01531791]
[1646844321143,3.5,2749.5,2749.4,0.01531791]
[1646844321343,3.5,2749.5,2749.1,0.75595375]
[1646844321344,5.41005,2749.5,2749.2,1.12152907]
[1646844321544,1.91005,2749.5,2749.4,0.00396076]
[1646844321746,0.91005,2749.5,2749.4,0.00396076]
[1646844322604,0.91005,2749.5,2749.4,0.08815171]
[1646844322904,0.91005,2749.5,2749.3,0.08374951]
[1646844323303,1.0,2749.8,2749.6,0.09037118]
[1646844323906,1.90973,2749.8,2749.6,0.09037118]
[1646844324304,0.90973,2749.8,2749.6,0.09037118]
[1646844324504,10.602968,2750.5,2749.6,0.09037118]
[1646844324705,0.3,2750.4,2749.6,0.09037118]
[1646844325306,0.3,2750.4,2749.6,0.45884602]
[1646844325513,5.6094388,2750.9,2749.9,0.011815]
[1646844325710,5.0902,2750.9,2749.9,0.011815]
[1646844325907,4.0902,2750.9,2749.9,0.011815]
[1646844326147,3.945,2750.8,2749.8,0.0694164]
[1646844326445,0.90954,2750.5,2750.3,0.00387414]
[1646844326647,2.7222054,2750.5,2750.3,0.00387414]
[1646844326845,0.3,2750.4,2750.3,0.00387414]
[1646844327046,3.7222054,2750.5,2750.3,0.00387414]
[1646844327447,0.3,2750.4,2749.7,0.08324718]
[1646844327647,0.3,2750.4,2750.3,0.00272512]
[1646844327648,2.11925,2750.4,2750.3,0.00272512]
[1646844328253,3.11925,2750.4,2750.3,0.00272512]
[1646844328448,3.11925,2750.4,2749.9,1.51173444]
[1646844328650,3.11925,2750.4,2750.0,1.51173444]
[1646844328651,7.98385,2750.4,2750.0,1.51173444]
[1646844328857,1.0,2750.3,2750.2,0.00284166]
[1646844329648,4.5,2750.3,2750.2,0.00284166]
[1646844329912,5.5,2750.3,2750.1,0.00284176]
[1646844330113,0.0498879,2750.2,2750.1,0.00284176]
[1646844330313,1.0498879,2750.2,2750.1,0.00284176]
[1646844330514,1.7144879,2750.2,2750.1,0.00284176]
[1646844330712,1.3498879,2750.2,2750.1,0.00284176]
[1646844330916,2.2596738,2750.2,2749.8,2.52055028]
[1646844331116,0.90979,2750.1,2749.8,2.52055028]
[1646844331314,0.90979,2750.1,2749.9,1.51178154]
[1646844331515,2.0,2750.2,2750.0,0.00419759]
[1646844331715,1.0,2750.2,2750.1,1.51178154]
[1646844332213,1.0,2750.2,2749.9,1.51178154]
[1646844332415,1.0,2750.2,2750.0,0.00419335]
[1646844332616,1.0,2750.2,2750.1,1.51178154]
[1646844333753,0.90987,2750.1,2750.0,0.00419329]
[1646844334151,0.90987,2750.1,2750.0,1.51593817]
[1646844334352,1.20987,2750.1,2750.0,1.51593817]
[1646844334551,1.20987,2750.1,2750.0,1.51174488]
[1646844335957,1.20987,2750.1,2749.9,0.00385437]
[1646844336955,1.20987,2750.1,2749.7,1.51174488]